{"text_format":"1","workbook":"xlsx","n_sheets":2,"sheets":["応募一覧","応募票"],"not_rendered":{"charts":0,"images":0,"macros":0,"external_links":0,"defined_names":1,"comments":0,"pivot_tables":0},"unopened":[],"bounds":{"document_bytes":16777216,"sheet_cells":100000,"rows_first":2000,"rows_last":500,"rows_between":2000,"halvings":0,"cell_chars":16384,"cell_head_chars":4096},"cells_cut":0,"cells_raw":0,"read":"whole","date_system":"1900"}

{"sheet":"応募一覧","index":0,"n_rows":28,"n_cols":6,"rows_kept":28,"cut":false,"hidden":false,"merged":[[3,2,3,5],[4,2,4,4],[2,2,2,4]]}
[null,null,null,"アグリアート展　応募一覧"]
[]
[null," 学校名　"]
[null,"住　　所"]
[null,"電話番号"]
[]
[null,null,"　　⇓　特別支援学級の場合は　特　と入力してください"]
["番号","学年（才）","特","ふりがな","氏名","作品名"]
[1]
[2]
[3]
[4]
[5]
[6]
[7]
[8]
[9]
[10]
[11]
[12]
[13]
[14]
[15]
[16]
[17]
[18]
[19]
[20]

{"sheet":"応募票","index":1,"n_rows":49,"n_cols":13,"rows_kept":49,"cut":false,"hidden":false,"merged":[]}
[]
["-応募票-"]
[]
["学校名・住所・電話番号　学校ゴム印があれば押してください。",null,null,null,null,null,null,null,null,null,null,null,"印刷する番号"]
[null,{"$f":"応募一覧!C3","v":0},null,null,null,null,null,null,null,null,null,null,"↓"]
[null,{"$f":"応募一覧!C4","v":0}]
[null,{"$f":"応募一覧!C5","v":0}]
[null,"才児",null,null,null,"ふりがな",{"$f":"IFERROR(VLOOKUP(M6,応募一覧!A9:F28,4,2),\"\")","v":""}]
[{"$f":"IFERROR(VLOOKUP(M6,応募一覧!A9:F28,2,2),\"\")","v":""},null,null,null,null,"氏名"]
[null,"年","(",{"$f":"IFERROR(IF(VLOOKUP(M6,応募一覧!A9:F28,3,2)=\"特\",\"㊕\",\"特\"),\" \")","v":" "},")",null,{"$f":"IFERROR(VLOOKUP(M6,応募一覧!A9:F28,5,2),\"\")","v":""}]
["特別支援学級の場合は",null,null,null,null,"※なるべくゴム印を押してください。"]
["（特）に○をつけてください。",null,null,null,null,"※こちらの名前で展示・表彰をしますのでご確認ください。"]
[]
["作品名"]
[null,{"$f":"IFERROR(VLOOKUP(M6,応募一覧!A9:F28,6,2),\"\")","v":""}]
[]
[]
[]
["-応募票-"]
[]
["学校名・住所・電話番号　学校ゴム印があれば押してください。",null,null,null,null,null,null,null,null,null,null,null,"印刷する番号"]
[null,{"$f":"応募一覧!C3","v":0},null,null,null,null,null,null,null,null,null,null,"↓"]
[null,{"$f":"応募一覧!C4","v":0}]
[null,{"$f":"応募一覧!C5","v":0}]
[null,"才児",null,null,null,"ふりがな",{"$f":"IFERROR(VLOOKUP(M23,応募一覧!A9:F28,4,2),\"\")","v":""}]
[{"$f":"IFERROR(VLOOKUP(M23,応募一覧!A9:F28,2,2),\"\")","v":""},null,null,null,null,"氏名"]
[null,"年","(",{"$f":"IFERROR(IF(VLOOKUP(M23,応募一覧!A9:F28,3,2)=\"特\",\"㊕\",\"特\"),\" \")","v":" "},")",null,{"$f":"IFERROR(VLOOKUP(M23,応募一覧!A9:F28,5,2),\"\")","v":""}]
["特別支援学級の場合は",null,null,null,null,"※なるべくゴム印を押してください。"]
["（特）に○をつけてください。",null,null,null,null,"※こちらの名前で展示・表彰をしますのでご確認ください。"]
[]
["作品名"]
[null,{"$f":"IFERROR(VLOOKUP(M23,応募一覧!A9:F28,6,2),\"\")","v":""}]
[]
[]
[]
["-応募票-"]
[]
["学校名・住所・電話番号　学校ゴム印があれば押してください。",null,null,null,null,null,null,null,null,null,null,null,"印刷する番号"]
[null,{"$f":"応募一覧!C3","v":0},null,null,null,null,null,null,null,null,null,null,"↓"]
[null,{"$f":"応募一覧!C4","v":0}]
[null,{"$f":"応募一覧!C5","v":0}]
[null,"才児",null,null,null,"ふりがな",{"$f":"IFERROR(VLOOKUP(M40,応募一覧!A9:F46,4,2),\"\")","v":""}]
[{"$f":"IFERROR(VLOOKUP(M40,応募一覧!A9:F46,2,2),\"\")","v":""},null,null,null,null,"氏名"]
[null,"年  ","(",{"$f":"IFERROR(IF(VLOOKUP(M40,応募一覧!A9:F28,3,2)=\"特\",\"㊕\",\"特\"),\"\")","v":""},")",null,{"$f":"IFERROR(VLOOKUP(M40,応募一覧!A9:F46,5,2),\"\")","v":""}]
["特別支援学級の場合は",null,null,null,null,"※なるべくゴム印を押してください。"]
["（特）に○をつけてください。",null,null,null,null,"※こちらの名前で展示・表彰をしますのでご確認ください。"]
[]
["作品名"]
[null,{"$f":"IFERROR(VLOOKUP(M40,応募一覧!A9:F46,6,2),\"\")","v":""}]